[Event "TOP 12F 2021"]
[Site "RENNES, France"]
[Date "2021.08.27"]
[Round "2.8"]
[White "Langer, Karele"]
[Black "Nicoara, Malina"]
[Result "0-1"]
[TimeControl "1H30 + 30 sec/coup"]
[WhiteElo "1320"]
[BlackElo "2066"]

1. d4 {[%clk 01:30:57]} {[%emt 00:00:02]} Nf6 {[%clk 01:28:29]} {[%emt
00:02:31]} 2. c4 {[%clk 01:31:20]} {[%emt 00:00:07]} d6 {[%clk 01:28:53]}
{[%emt 00:00:06]} 3. Nc3 {[%clk 01:31:34]} {[%emt 00:00:16]} e5 {[%clk
01:29:11]} {[%emt 00:00:12]} 4. dxe5 {[%clk 01:29:01]} {[%emt 00:03:03]} dxe5
{[%clk 01:29:37]} {[%emt 00:00:05]} 5. Qxd8+ {[%clk 01:28:37]} {[%emt
00:00:53]} Kxd8 {[%clk 01:30:02]} {[%emt 00:00:05]} 6. Nf3 {[%clk 01:27:51]}
{[%emt 00:01:16]} Nfd7 {[%clk 01:30:13]} {[%emt 00:00:18]} 7. e4 {[%clk
01:23:33]} {[%emt 00:04:48]} f6 {[%clk 01:27:21]} {[%emt 00:03:22]} 8. Be2
{[%clk 01:16:52]} {[%emt 00:07:12]} c6 {[%clk 01:27:26]} {[%emt 00:00:25]} 9.
O-O {[%clk 01:16:21]} {[%emt 00:01:02]} a5 {[%clk 01:24:32]} {[%emt 00:03:24]}
10. Rd1 {[%clk 01:12:46]} {[%emt 00:04:05]} Kc7 {[%clk 01:24:55]} {[%emt
00:00:06]} 11. Be3 {[%clk 01:11:40]} {[%emt 00:01:37]} Na6 {[%clk 01:24:10]}
{[%emt 00:01:13]} 12. Rac1 {[%clk 01:10:01]} {[%emt 00:02:10]} Nac5 {[%clk
01:12:31]} {[%emt 00:12:09]} 13. Nd2 {[%clk 00:56:07]} {[%emt 00:14:23]} h5
{[%clk 01:10:42]} {[%emt 00:02:20]} 14. b3 {[%clk 00:49:26]} {[%emt 00:07:10]}
Be7 {[%clk 01:05:44]} {[%emt 00:05:28]} 15. a3 {[%clk 00:47:55]} {[%emt
00:02:01]} Na6 {[%clk 00:55:39]} {[%emt 00:10:34]} 16. Ra1 {[%clk 00:34:07]}
{[%emt 00:14:19]} b6 {[%clk 00:50:32]} {[%emt 00:05:37]} 17. Rdb1 {[%clk
00:28:50]} {[%emt 00:05:46]} Bb7 {[%clk 00:46:43]} {[%emt 00:04:19]} 18. Na4
{[%clk 00:22:13]} {[%emt 00:07:07]} g5 {[%clk 00:43:44]} {[%emt 00:03:29]} 19.
Rc1 {[%clk 00:17:38]} {[%emt 00:05:05]} Rad8 {[%clk 00:40:03]} {[%emt
00:04:11]} 20. Nf1 {[%clk 00:15:08]} {[%emt 00:03:00]} Nac5 {[%clk 00:32:31]}
{[%emt 00:08:02]} 21. Nxc5 {[%clk 00:14:55]} {[%emt 00:00:42]} Bxc5 {[%clk
00:32:31]} {[%emt 00:00:31]} 22. f3 {[%clk 00:11:29]} {[%emt 00:03:57]} Bxe3+
{[%clk 00:30:55]} {[%emt 00:02:06]} 23. Nxe3 {[%clk 00:11:31]} {[%emt
00:00:27]} Nc5 {[%clk 00:31:23]} {[%emt 00:00:03]} 24. Rab1 {[%clk 00:07:54]}
{[%emt 00:04:07]} Rd2 {[%clk 00:29:15]} {[%emt 00:02:37]} 25. Bf1 {[%clk
00:07:48]} {[%emt 00:00:36]} a4 {[%clk 00:14:41]} {[%emt 00:15:05]} 26. bxa4
{[%clk 00:05:43]} {[%emt 00:02:34]} Nxa4 {[%clk 00:15:03]} {[%emt 00:00:08]} 27.
Rd1 {[%clk 00:04:24]} {[%emt 00:01:50]} Ra2 {[%clk 00:13:14]} {[%emt 00:02:18]}
28. Ra1 {[%clk 00:04:29]} {[%emt 00:00:25]} Rxa1 {[%clk 00:12:18]} {[%emt
00:01:27]} 29. Rxa1 {[%clk 00:04:52]} {[%emt 00:00:07]} Bc8 {[%clk 00:12:10]}
{[%emt 00:00:37]} 30. Rd1 {[%clk 00:04:16]} {[%emt 00:01:07]} Be6 {[%clk
00:12:02]} {[%emt 00:00:38]} 31. Rc1 {[%clk 00:04:11]} {[%emt 00:00:35]} Rd8
{[%clk 00:09:23]} {[%emt 00:03:09]} 32. g3 {[%clk 00:03:41]} {[%emt 00:01:01]}
Rd2 {[%clk 00:08:15]} {[%emt 00:01:37]} 33. h4 {[%clk 00:03:18]} {[%emt
00:00:54]} gxh4 {[%clk 00:06:37]} {[%emt 00:02:08]} 34. gxh4 {[%clk 00:03:40]}
{[%emt 00:00:07]} Ra2 {[%clk 00:07:02]} {[%emt 00:00:04]} 35. Nc2 {[%clk
00:03:29]} {[%emt 00:00:42]} Nb2 {[%clk 00:06:08]} {[%emt 00:01:25]} 36. Nb4
{[%clk 00:02:29]} {[%emt 00:01:30]} Rxa3 {[%clk 00:05:44]} {[%emt 00:00:54]} 37.
Nd5+ {[%clk 00:02:40]} {[%emt 00:00:19]} Bxd5 {[%clk 00:05:59]} {[%emt
00:00:15]} 38. cxd5 {[%clk 00:03:05]} {[%emt 00:00:05]} c5 {[%clk 00:06:19]}
{[%emt 00:00:10]} 39. Bg2 {[%clk 00:03:02]} {[%emt 00:00:33]} Kd6 {[%clk
00:05:53]} {[%emt 00:00:56]} 40. Kh2 {[%clk 00:02:44]} {[%emt 00:00:49]} b5
{[%clk 00:05:39]} {[%emt 00:00:43]} 41. Rg1 {[%clk 00:02:58]} {[%emt 00:00:16]}
Ra2 {[%clk 00:04:33]} {[%emt 00:01:35]} 42. Kh1 {[%clk 00:01:48]} {[%emt
00:01:42]} c4 {[%clk 00:04:16]} {[%emt 00:00:46]} 43. Bh3 {[%clk 00:01:50]}
{[%emt 00:00:28]} c3 {[%clk 00:04:15]} {[%emt 00:00:31]} 44. Rg6 {[%emt
00:00:15]} c2 {[%clk 00:04:09]} {[%emt 00:00:34]} 45. Rxf6+ {[%clk 00:02:29]}
{[%emt 00:00:07]} Ke7 {[%clk 00:03:20]} {[%emt 00:01:18]} 46. Re6+ {[%clk
00:01:19]} {[%emt 00:01:41]} Kf7 {[%emt 00:00:26]} 0-1

[Event "TOP 12F 2021"]
[Site "RENNES, France"]
[Date "2021.08.27"]
[Round "2.9"]
[White "Savina, Anastasia"]
[Black "Sebag, Marie"]
[Result "0-1"]
[TimeControl "1H30 + 30 sec/coup"]
[WhiteElo "2336"]
[BlackElo "2447"]

1. d4 {[%clk 01:30:47]} {[%emt 00:00:12]} d5 {[%clk 01:26:48]} {[%emt
00:04:12]} 2. c4 {[%clk 01:31:02]} {[%emt 00:00:15]} c6 {[%clk 01:27:09]}
{[%emt 00:00:09]} 3. Nf3 {[%clk 01:31:22]} {[%emt 00:00:10]} Nf6 {[%clk
01:27:28]} {[%emt 00:00:10]} 4. Nc3 {[%clk 01:31:47]} {[%emt 00:00:05]} e6
{[%clk 01:27:53]} {[%emt 00:00:05]} 5. e3 {[%clk 01:32:10]} {[%emt 00:00:08]}
Nbd7 {[%clk 01:28:11]} {[%emt 00:00:11]} 6. Qc2 {[%clk 01:32:26]} {[%emt
00:00:14]} Bd6 {[%clk 01:28:20]} {[%emt 00:00:21]} 7. b3 {[%clk 01:32:04]}
{[%emt 00:00:52]} O-O {[%clk 01:27:01]} {[%emt 00:01:50]} 8. Be2 {[%clk
01:32:05]} {[%emt 00:00:29]} b6 {[%clk 01:24:40]} {[%emt 00:02:51]} 9. O-O
{[%clk 01:32:17]} {[%emt 00:00:17]} Bb7 {[%clk 01:24:37]} {[%emt 00:00:33]} 10.
Bb2 {[%clk 01:32:37]} {[%emt 00:00:11]} Qe7 {[%clk 01:24:16]} {[%emt 00:00:51]}
11. Rad1 {[%clk 01:30:16]} {[%emt 00:02:50]} Rad8 {[%clk 01:20:44]} {[%emt
00:04:02]} 12. Rfe1 {[%clk 01:26:41]} {[%emt 00:04:06]} Rfe8 {[%clk 01:20:08]}
{[%emt 00:01:05]} 13. e4 {[%clk 01:22:18]} {[%emt 00:04:53]} Nxe4 {[%clk
01:14:04]} {[%emt 00:06:34]} 14. Nxe4 {[%clk 01:21:33]} {[%emt 00:01:15]} dxe4
{[%clk 01:14:29]} {[%emt 00:00:06]} 15. Qxe4 {[%clk 01:21:57]} {[%emt
00:00:06]} Bb4 {[%clk 00:57:03]} {[%emt 00:17:55]} 16. Rf1 {[%clk 01:18:54]}
{[%emt 00:03:34]} Ba3 {[%clk 00:55:57]} {[%emt 00:01:36]} 17. Ba1 {[%clk
00:59:08]} {[%emt 00:20:16]} Nf6 {[%clk 00:45:39]} {[%emt 00:10:49]} 18. Qh4
{[%clk 00:51:06]} {[%emt 00:08:32]} c5 {[%clk 00:44:25]} {[%emt 00:01:44]} 19.
h3 {[%clk 00:35:20]} {[%emt 00:16:16]} cxd4 {[%clk 00:27:04]} {[%emt 00:17:50]}
20. Nxd4 {[%clk 00:30:37]} {[%emt 00:05:14]} Bc5 {[%clk 00:25:25]} {[%emt
00:02:09]} 21. Bd3 {[%clk 00:26:31]} {[%emt 00:04:36]} Rd7 {[%clk 00:23:58]}
{[%emt 00:01:57]} 22. b4 {[%clk 00:01:02]} {[%emt 00:25:59]} Bxb4 {[%clk
00:20:36]} {[%emt 00:03:53]} 23. Nc2 {[%clk 00:00:44]} {[%emt 00:00:48]} Ne4
{[%clk 00:08:30]} {[%emt 00:12:36]} 24. Qxe7 {[%clk 00:00:38]} {[%emt
00:00:36]} Bxe7 {[%clk 00:08:55]} {[%emt 00:00:05]} 25. Bxe4 {[%clk 00:00:43]}
{[%emt 00:00:25]} Rxd1 {[%clk 00:08:18]} {[%emt 00:01:07]} 26. Bxb7 {[%clk
00:01:00]} {[%emt 00:00:13]} Rd2 {[%clk 00:08:07]} {[%emt 00:00:41]} 27. Nd4
{[%clk 00:00:34]} {[%emt 00:00:57]} Rxa2 {[%clk 00:07:09]} {[%emt 00:01:28]} 28.
Nb3 {[%clk 00:00:32]} {[%emt 00:00:32]} Rd8 {[%clk 00:06:08]} {[%emt 00:01:30]}
29. Be4 {[%clk 00:00:33]} {[%emt 00:00:28]} a5 {[%clk 00:05:00]} {[%emt
00:01:38]} 30. Bd4 {[%clk 00:00:35]} {[%emt 00:00:29]} a4 {[%clk 00:01:39]}
{[%emt 00:03:51]} 31. Bxb6 {[%clk 00:00:38]} {[%emt 00:00:28]} axb3 {[%clk
00:01:52]} {[%emt 00:00:17]} 32. Bxd8 {[%clk 00:01:03]} {[%emt 00:00:04]} Bxd8
{[%clk 00:02:18]} {[%emt 00:00:03]} 33. Rb1 {[%clk 00:00:32]} {[%emt 00:01:02]}
f5 {[%clk 00:01:24]} {[%emt 00:01:24]} 34. Bd3 {[%clk 00:00:32]} {[%emt
00:00:30]} b2 {[%clk 00:01:26]} {[%emt 00:00:28]} 35. Kf1 {[%clk 00:00:36]}
{[%emt 00:00:27]} Kf7 {[%clk 00:01:16]} {[%emt 00:00:40]} 36. Ke2 {[%clk
00:00:48]} {[%emt 00:00:18]} Bb6 {[%clk 00:01:13]} {[%emt 00:00:33]} 37. c5
{[%clk 00:00:32]} {[%emt 00:00:46]} Bxc5 {[%clk 00:01:29]} {[%emt 00:00:14]} 38.
Bc4 {[%clk 00:00:55]} {[%emt 00:00:07]} Ra4 {[%clk 00:01:50]} {[%emt 00:00:09]}
39. Kd3 {[%clk 00:00:49]} {[%emt 00:00:36]} Ra3+ {[%clk 00:01:13]} {[%emt
00:01:08]} 40. Kc2 {[%clk 00:00:32]} {[%emt 00:00:47]} Bd4 {[%clk 00:01:33]}
{[%emt 00:00:10]} 41. Bb3 {[%clk 00:00:37]} {[%emt 00:00:25]} Ra1 {[%clk
00:01:17]} {[%emt 00:00:46]} 42. f3 {[%clk 00:00:48]} {[%emt 00:00:20]} Kf6
{[%clk 00:01:34]} {[%emt 00:00:13]} 43. Bc4 {[%clk 00:00:32]} {[%emt 00:00:46]}
e5 {[%clk 00:01:39]} {[%emt 00:00:24]} 44. Bd3 {[%clk 00:00:58]} {[%emt
00:00:04]} g6 {[%clk 00:01:31]} {[%emt 00:00:38]} 45. Kd2 {[%clk 00:00:52]}
{[%emt 00:00:36]} h5 {[%clk 00:00:57]} {[%emt 00:01:04]} 46. Ke2 {[%clk
00:00:36]} {[%emt 00:00:45]} h4 {[%clk 00:01:14]} {[%emt 00:00:14]} 47. Rd1
{[%clk 00:00:34]} {[%emt 00:00:32]} Rc1 {[%clk 00:01:16]} {[%emt 00:00:27]} 48.
Bb1 {[%clk 00:00:32]} {[%emt 00:00:33]} Kg5 {[%clk 00:01:35]} {[%emt 00:00:10]}
49. Ba2 {[%clk 00:00:32]} {[%emt 00:00:30]} Kf4 {[%emt 00:00:29]} 0-1

[Event "TOP 12F 2021"]
[Site "RENNES, France"]
[Date "2021.08.27"]
[Round "2.10"]
[White "Javakhishvili, Lela"]
[Black "Doluhanova, Evgeniya"]
[Result "1-0"]
[TimeControl "1H30 + 30 sec/coup"]
[WhiteElo "2470"]
[BlackElo "2207"]

1. d4 {[%clk 01:30:57]} {[%emt 00:00:01]} Nf6 {[%clk 01:23:29]} {[%emt
00:07:32]} 2. c4 {[%clk 01:31:18]} {[%emt 00:00:09]} e6 {[%clk 01:23:54]}
{[%emt 00:00:06]} 3. Nf3 {[%clk 01:31:39]} {[%emt 00:00:09]} b6 {[%clk
01:24:20]} {[%emt 00:00:04]} 4. g3 {[%clk 01:31:51]} {[%emt 00:00:17]} Bb7
{[%clk 01:24:47]} {[%emt 00:00:03]} 5. Bg2 {[%clk 01:32:14]} {[%emt 00:00:06]}
Be7 {[%clk 01:25:12]} {[%emt 00:00:06]} 6. O-O {[%clk 01:32:36]} {[%emt
00:00:07]} O-O {[%clk 01:25:38]} {[%emt 00:00:05]} 7. Nc3 {[%clk 01:32:55]}
{[%emt 00:00:11]} Ne4 {[%clk 01:26:05]} {[%emt 00:00:03]} 8. Bd2 {[%clk
01:33:19]} {[%emt 00:00:06]} Bf6 {[%clk 01:23:18]} {[%emt 00:03:17]} 9. Re1
{[%clk 01:33:20]} {[%emt 00:00:28]} Nxc3 {[%clk 01:23:16]} {[%emt 00:00:32]} 10.
Bxc3 {[%clk 01:33:39]} {[%emt 00:00:11]} Be4 {[%clk 01:23:36]} {[%emt
00:00:11]} 11. Qa4 {[%clk 01:31:36]} {[%emt 00:02:33]} d6 {[%clk 01:16:09]}
{[%emt 00:07:57]} 12. Rad1 {[%clk 01:29:55]} {[%emt 00:02:11]} Qe8 {[%clk
01:14:29]} {[%emt 00:02:09]} 13. Qa3 {[%clk 01:24:20]} {[%emt 00:06:06]} a5
{[%clk 01:09:12]} {[%emt 00:05:47]} 14. d5 {[%clk 01:16:50]} {[%emt 00:08:00]}
Bxc3 {[%clk 01:08:17]} {[%emt 00:01:26]} 15. Qxc3 {[%clk 01:17:14]} {[%emt
00:00:06]} e5 {[%clk 01:07:29]} {[%emt 00:01:18]} 16. Bh3 {[%clk 01:13:36]}
{[%emt 00:04:07]} Nd7 {[%clk 01:06:18]} {[%emt 00:01:40]} 17. b3 {[%clk
01:08:56]} {[%emt 00:05:10]} Nc5 {[%clk 01:04:32]} {[%emt 00:02:17]} 18. a3
{[%clk 01:08:00]} {[%emt 00:01:27]} Bg6 {[%clk 00:57:33]} {[%emt 00:07:29]} 19.
Nh4 {[%clk 01:00:48]} {[%emt 00:07:41]} f5 {[%clk 00:57:11]} {[%emt 00:00:53]}
20. b4 {[%clk 00:59:42]} {[%emt 00:01:36]} Ne4 {[%clk 00:56:35]} {[%emt
00:01:05]} 21. Qd3 {[%clk 00:52:05]} {[%emt 00:08:07]} Ng5 {[%clk 00:48:33]}
{[%emt 00:08:32]} 22. Bg2 {[%clk 00:51:51]} {[%emt 00:00:44]} axb4 {[%clk
00:38:50]} {[%emt 00:10:14]} 23. axb4 {[%clk 00:51:56]} {[%emt 00:00:25]} f4
{[%clk 00:37:28]} {[%emt 00:01:51]} 24. Nxg6 {[%clk 00:45:19]} {[%emt
00:07:07]} Qxg6 {[%clk 00:37:46]} {[%emt 00:00:13]} 25. Qxg6 {[%clk 00:44:17]}
{[%emt 00:01:32]} hxg6 {[%clk 00:38:11]} {[%emt 00:00:04]} 26. Ra1 {[%clk
00:44:05]} {[%emt 00:00:42]} Rxa1 {[%clk 00:30:14]} {[%emt 00:08:28]} 27. Rxa1
{[%clk 00:44:32]} {[%emt 00:00:02]} f3 {[%clk 00:30:14]} {[%emt 00:00:30]} 28.
h4 {[%clk 00:42:27]} {[%emt 00:02:35]} fxg2 {[%clk 00:23:50]} {[%emt 00:06:54]}
29. hxg5 {[%clk 00:42:51]} {[%emt 00:00:06]} Kf7 {[%clk 00:23:52]} {[%emt
00:00:28]} 30. Ra7 {[%clk 00:41:55]} {[%emt 00:01:26]} Rc8 {[%clk 00:24:08]}
{[%emt 00:00:14]} 31. e4 {[%clk 00:39:00]} {[%emt 00:03:25]} Ke7 {[%clk
00:23:46]} {[%emt 00:00:52]} 32. Kxg2 {[%clk 00:35:25]} {[%emt 00:04:05]} Kd7
{[%clk 00:24:03]} {[%emt 00:00:13]} 33. f4 {[%clk 00:35:18]} {[%emt 00:00:36]}
exf4 {[%clk 00:13:52]} {[%emt 00:10:41]} 34. gxf4 {[%clk 00:35:43]} {[%emt
00:00:05]} Re8 {[%clk 00:14:21]} {[%emt 00:00:02]} 35. Kf3 {[%clk 00:35:57]}
{[%emt 00:00:15]} Rh8 {[%clk 00:14:46]} {[%emt 00:00:04]} 36. e5 {[%clk
00:32:31]} {[%emt 00:03:56]} dxe5 {[%clk 00:15:10]} {[%emt 00:00:07]} 37. fxe5
{[%clk 00:32:56]} {[%emt 00:00:05]} Rh3+ {[%clk 00:15:31]} {[%emt 00:00:08]} 38.
Ke4 {[%clk 00:32:01]} {[%emt 00:01:25]} Rh4+ {[%clk 00:15:46]} {[%emt
00:00:16]} 39. Kd3 {[%clk 00:32:29]} {[%emt 00:00:02]} Rh3+ {[%clk 00:16:04]}
{[%emt 00:00:12]} 40. Kd4 {[%clk 00:32:16]} {[%emt 00:00:43]} Rh4+ {[%clk
00:16:28]} {[%emt 00:00:06]} 41. Kc3 {[%clk 00:32:44]} {[%emt 00:00:01]} Rh3+
{[%clk 00:16:49]} {[%emt 00:00:09]} 42. Kc2 {[%clk 00:31:02]} {[%emt 00:02:12]}
Re3 {[%clk 00:02:42]} {[%emt 00:14:37]} 43. e6+ {[%clk 00:31:19]} {[%emt
00:00:14]} Kd6 {[%clk 00:03:02]} {[%emt 00:00:10]} 44. Ra8 {[%clk 00:31:25]}
{[%emt 00:00:24]} c6 {[%clk 00:01:02]} {[%emt 00:02:30]} 45. Rd8+ {[%clk
00:31:37]} {[%emt 00:00:17]} Ke7 {[%clk 00:00:59]} {[%emt 00:00:28]} 46. Rd7+
{[%clk 00:31:49]} {[%emt 00:00:24]} Ke8 {[%clk 00:01:26]} {[%emt 00:00:03]} 47.
Rxg7 {[%clk 00:30:36]} {[%emt 00:01:42]} cxd5 {[%clk 00:01:49]} {[%emt
00:00:07]} 48. cxd5 {[%clk 00:31:03]} {[%emt 00:00:03]} Re5 {[%clk 00:02:16]}
{[%emt 00:00:04]} 49. Rd7 {[%clk 00:31:05]} {[%emt 00:00:27]} Rxg5 {[%clk
00:02:29]} {[%emt 00:00:17]} 50. Kc3 {[%clk 00:30:54]} {[%emt 00:00:41]} Rg4
{[%clk 00:00:33]} {[%emt 00:02:27]} 51. Rg7 {[%clk 00:29:57]} {[%emt 00:01:26]}
Kf8 {[%clk 00:00:45]} {[%emt 00:00:18]} 52. Rf7+ {[%clk 00:30:13]} {[%emt
00:00:14]} Ke8 {[%clk 00:01:11]} {[%emt 00:00:05]} 53. d6 {[%clk 00:30:20]}
{[%emt 00:00:23]} Re4 {[%clk 00:01:19]} {[%emt 00:00:22]} 54. d7+ {[%clk
00:30:37]} {[%emt 00:00:14]} 1-0

[Event "TOP 12F 2021"]
[Site "RENNES, France"]
[Date "2021.08.27"]
[Round "2.11"]
[White "Maisuradze, Nino"]
[Black "Steil-Antoni, Fiona"]
[Result "0-1"]
[TimeControl "1H30 + 30 sec/coup"]
[WhiteElo "2245"]
[BlackElo "2153"]

1. d4 {[%clk 01:30:54]} {[%emt 00:00:05]} e6 {[%clk 01:30:53]} {[%emt
00:00:07]} 2. c4 {[%clk 01:28:51]} {[%emt 00:02:34]} b6 {[%clk 01:30:19]}
{[%emt 00:01:04]} 3. a3 {[%clk 01:28:35]} {[%emt 00:00:46]} Bb7 {[%clk
01:30:24]} {[%emt 00:00:24]} 4. Nc3 {[%clk 01:28:58]} {[%emt 00:00:07]} f5
{[%clk 01:29:22]} {[%emt 00:01:33]} 5. d5 {[%clk 01:24:24]} {[%emt 00:05:04]}
Be7 {[%clk 01:12:36]} {[%emt 00:17:15]} 6. Nf3 {[%clk 01:21:33]} {[%emt
00:03:22]} Nf6 {[%clk 01:11:15]} {[%emt 00:01:50]} 7. Nd4 {[%clk 01:14:09]}
{[%emt 00:07:55]} Qc8 {[%clk 01:07:36]} {[%emt 00:04:09]} 8. h3 {[%clk
00:55:44]} {[%emt 00:18:55]} O-O {[%clk 01:04:31]} {[%emt 00:03:35]} 9. Bf4
{[%clk 00:53:47]} {[%emt 00:02:27]} Nh5 {[%clk 00:52:04]} {[%emt 00:12:56]} 10.
Bh2 {[%clk 00:51:33]} {[%emt 00:02:44]} f4 {[%clk 00:47:20]} {[%emt 00:05:15]}
11. e4 {[%clk 00:25:19]} {[%emt 00:26:44]} g6 {[%clk 00:44:26]} {[%emt
00:03:24]} 12. Be2 {[%clk 00:24:57]} {[%emt 00:00:52]} e5 {[%clk 00:39:09]}
{[%emt 00:05:47]} 13. Nf5 {[%clk 00:24:22]} {[%emt 00:01:06]} gxf5 {[%clk
00:36:31]} {[%emt 00:03:07]} 14. Bxh5 {[%clk 00:24:49]} {[%emt 00:00:02]} fxe4
{[%clk 00:33:57]} {[%emt 00:03:04]} 15. Nxe4 {[%clk 00:24:36]} {[%emt
00:00:44]} d6 {[%clk 00:31:59]} {[%emt 00:02:28]} 16. Bg4 {[%clk 00:13:13]}
{[%emt 00:11:53]} Qe8 {[%clk 00:32:05]} {[%emt 00:00:24]} 17. Be6+ {[%clk
00:09:52]} {[%emt 00:03:51]} Kh8 {[%clk 00:32:22]} {[%emt 00:00:13]} 18. g3
{[%clk 00:01:46]} {[%emt 00:08:37]} Qg6 {[%clk 00:31:02]} {[%emt 00:01:49]} 19.
Qd3 {[%clk 00:01:38]} {[%emt 00:00:38]} fxg3 {[%clk 00:29:55]} {[%emt
00:01:36]} 20. Bxg3 {[%clk 00:01:20]} {[%emt 00:00:48]} Na6 {[%clk 00:27:14]}
{[%emt 00:03:11]} 21. b4 {[%clk 00:00:49]} {[%emt 00:01:01]} Bc8 {[%clk
00:22:37]} {[%emt 00:05:07]} 22. Rg1 {[%clk 00:00:35]} {[%emt 00:00:44]} Qh6
{[%clk 00:19:58]} {[%emt 00:03:08]} 23. c5 {[%emt 00:00:37]} 0-1

[Event "TOP 12F 2021"]
[Site "RENNES, France"]
[Date "2021.08.27"]
[Round "2.12"]
[White "Thomas, Anysia"]
[Black "Fischer, Julie"]
[Result "1/2-1/2"]
[TimeControl "1H30 + 30 sec/coup"]
[WhiteElo "2170"]
[BlackElo "2073"]

1. d4 {[%clk 01:30:57]} {[%emt 00:00:02]} Nf6 {[%clk 01:30:42]} {[%emt
00:00:19]} 2. c4 {[%clk 01:31:20]} {[%emt 00:00:06]} g6 {[%clk 01:30:57]}
{[%emt 00:00:15]} 3. Nc3 {[%clk 01:31:30]} {[%emt 00:00:20]} Bg7 {[%clk
01:31:19]} {[%emt 00:00:08]} 4. e4 {[%clk 01:31:51]} {[%emt 00:00:09]} d6
{[%clk 01:31:38]} {[%emt 00:00:12]} 5. Nf3 {[%clk 01:32:06]} {[%emt 00:00:15]}
O-O {[%clk 01:31:47]} {[%emt 00:00:21]} 6. Be2 {[%clk 01:32:18]} {[%emt
00:00:19]} Na6 {[%clk 01:30:26]} {[%emt 00:01:51]} 7. O-O {[%clk 01:32:10]}
{[%emt 00:00:38]} e5 {[%clk 01:29:39]} {[%emt 00:01:17]} 8. Be3 {[%clk
01:32:32]} {[%emt 00:00:08]} Ng4 {[%clk 01:26:32]} {[%emt 00:03:37]} 9. Bg5
{[%clk 01:32:30]} {[%emt 00:00:30]} f6 {[%clk 01:26:03]} {[%emt 00:01:00]} 10.
Bc1 {[%clk 01:32:28]} {[%emt 00:00:33]} h5 {[%clk 01:21:19]} {[%emt 00:05:14]}
11. h3 {[%clk 01:24:27]} {[%emt 00:08:30]} Nh6 {[%clk 01:21:26]} {[%emt
00:00:23]} 12. c5 {[%clk 01:22:31]} {[%emt 00:02:27]} exd4 {[%clk 01:17:04]}
{[%emt 00:04:53]} 13. Bxa6 {[%clk 01:22:42]} {[%emt 00:00:18]} dxc3 {[%clk
01:16:29]} {[%emt 00:01:05]} 14. Bc4+ {[%clk 01:22:56]} {[%emt 00:00:16]} Nf7
{[%clk 01:14:36]} {[%emt 00:02:23]} 15. cxd6 {[%clk 01:22:14]} {[%emt
00:01:13]} cxd6 {[%clk 01:11:06]} {[%emt 00:04:00]} 16. bxc3 {[%clk 01:17:33]}
{[%emt 00:05:11]} Qc7 {[%clk 01:05:05]} {[%emt 00:06:31]} 17. Qb3 {[%clk
01:05:42]} {[%emt 00:12:21]} Kh7 {[%clk 00:58:23]} {[%emt 00:07:12]} 18. Ba3
{[%clk 01:04:00]} {[%emt 00:02:12]} Ng5 {[%clk 00:58:26]} {[%emt 00:00:28]} 19.
Nxg5+ {[%clk 00:39:49]} {[%emt 00:24:41]} fxg5 {[%clk 00:58:53]} {[%emt
00:00:03]} 20. Be6 {[%clk 00:37:48]} {[%emt 00:02:31]} Be5 {[%clk 00:52:20]}
{[%emt 00:07:03]} 21. Rad1 {[%clk 00:34:15]} {[%emt 00:04:02]} Qe7 {[%clk
00:47:55]} {[%emt 00:04:56]} 22. Bxc8 {[%emt 00:03:43]} Raxc8 {[%clk 00:48:20]}
{[%emt 00:00:03]} 23. Qd5 {[%clk 00:30:13]} {[%emt 00:01:22]} Rcd8 {[%clk
00:48:29]} {[%emt 00:00:21]} 24. Rd3 {[%clk 00:22:33]} {[%emt 00:08:09]} b6
{[%clk 00:47:43]} {[%emt 00:01:17]} 25. Bc1 {[%clk 00:17:10]} {[%emt 00:05:52]}
Rc8 {[%clk 00:43:06]} {[%emt 00:05:08]} 26. Ba3 {[%clk 00:15:09]} {[%emt
00:02:31]} Rcd8 {[%clk 00:41:43]} {[%emt 00:01:53]} 27. Bc1 {[%clk 00:15:02]}
{[%emt 00:00:36]} Rc8 {[%clk 00:37:16]} {[%emt 00:04:57]} 28. Ba3 {[%clk
00:14:34]} {[%emt 00:00:58]} 1/2-1/2